Cogmind - Beta 14 *** ADVENTURER MODE // 2025.04.30 @ 22:27:24 Player: Allakazzaror Result: Destroyed by as-58029 with Assembled Heavy Rifle Performance ------------- Evolutions (0) 0 Regions Visited (2) 400 Robots Destroyed (17) 85 Value Destroyed (317) 317 Prototype IDs (6) 120 Alien Tech Used (0) 0 Bonus (93) 93 TOTAL SCORE: 1015 Bonus ------- Follower Combat Kills 93 Cogmind --------- Core Integrity 0/250 Matter 267/300 Energy 50/100 System Corruption 1% Temperature Hot (231) Movement Core (50) Location -10/Mines Parts ------- > --- POWER (1) -------- (None) > --- PROPULSION (2) --- (None) > --- UTILITY (2) ------ Core Shielding > --- WEAPON (2) ------- (None) > --- INVENTORY (5) ---- Structural Scanner Signal Interpreter Propulsion Shielding EM Pulse Gun EM Pulse Gun Peak State ------------ > --- POWER ------------ Light Nuclear Core > --- PROPULSION ------- Light Treads Light Treads > --- UTILITY ---------- Large Storage Unit Structural Scanner > --- WEAPON ----------- EM Pulse Gun EM Pulse Gun > --- INVENTORY -------- Light Ion Engine Signal Interpreter Targeting Computer Core Shielding Propulsion Shielding Light Armor Plating EM Pulse Gun EM Pulse Gun EM Pulse Gun Mining Claw [Rating: 10] Favorites ----------- Power Light Nuclear Core Engine Light Ion Engine Power Core Light Nuclear Core Propulsion Light Treads Treads Light Treads Utility Structural Scanner Device Structural Scanner Storage Small Storage Unit Protection Propulsion Shielding Weapon EM Pulse Gun Energy Gun EM Pulse Gun Ballistic Gun Light Assault Rifle Slashing Weapon Mining Claw Build | -11 -10 -10 ------- Run | Yrd Mat Min Slots Evolved . | . . . Power . | . . . Propulsion . | . . . Utility . | . . . Weapon . | . . . Parts Attached 23 | 2 14 7 Power 3 | 1 1 1 Engine 2 | 1 . 1 Core 1 | . 1 . Reactor . | . . . Propulsion 4 | . 3 1 Treads 4 | . 3 1 Leg . | . . . Wheel . | . . . Hover . | . . . Flight . | . . . Utility 8 | 1 3 4 Device 1 | . 1 . Storage 2 | 1 1 . Processor . | . . . Hackware . | . . . Protection 5 | . 1 4 Artifact . | . . . Weapon 8 | . 7 1 Energy Gun 6 | . 5 1 Energy Cannon . | . . . Ballistic Gun 1 | . 1 . Ballistic Cannon . | . . . Launcher . | . . . Special Weapon . | . . . Impact Weapon . | . . . Slashing Weapon 1 | . 1 . Piercing Weapon . | . . . Special Melee Weapon . | . . . Unidentified Prototypes . | . . . Parts Lost 9 | . . 9 Power 2 | . . 2 Propulsion 2 | . . 2 Utility 3 | . . 3 Weapon 2 | . . 2 Highest Loss Streak 9 | . . 9 To Critical Strikes . | . . . Average Slot Usage (%) 98 | . 98 98 Engine 2 | . 3 . Core 11 | . 10 13 Treads 27 | . 27 27 Device 7 | . 6 12 Storage 14 | . 14 14 Protection 5 | . 5 2 Energy Gun 24 | . 23 27 Ballistic Gun 3 | . 4 . Peak Build Rating 10 | 2 9 10 Average Rating 8 | 1 8 9 On Entrance 3 | . 2 9 Naked Turns . | . . . Heaviest Build 32 | 8 30 32 Greatest Support 40 | 3 40 40 Greatest Overweight (x) 2 | 2 . 1 Average Overweight (x) . | 1 . . Largest Inventory Capacity 15 | 8 15 15 Average Capacity 11 | 7 10 14 Most Carried 14 | 8 9 14 Average Carried 8 | 5 8 10 Final Capacity 15 | 8 15 5 Final Carried 9 | 8 9 5 Class Distribution -------------------- 100% | Mutant Dominant Class ---------------- Mutant | -10/Materials Mutant | -10/Mines Resources | -11 -10 -10 ----------- Run | Yrd Mat Min Matter Collected 416 | 212 204 . Remotely . | . . . Salvage Created 567 | . 457 110 Parts 40 | . 34 6 Haulers Intercepted 2 | . 2 . Recyclers Shooed . | . . . Parts Field Recycled . | . . . Retrieved Matter . | . . . Parts Self-Destructed . | . . . Prevented . | . . . Kills | -11 -10 -10 ------- Run | Yrd Mat Min Combat Hostiles Destroyed 9 | . 7 2 Guns 9 | . 7 2 Classes Destroyed 7 | . 6 1 Worker 2 | . 2 . Builder 1 | . 1 . Hauler 2 | . 2 . Watcher 3 | . 3 . Swarmer 3 | . 3 . Grunt 5 | . 4 1 Sentry 1 | . . 1 Best Kill Streak 3 | . 3 1 Combat Bots Only 3 | . 3 1 Max Kills in Single Turn 1 | . 1 1 Gunslinging . | . . . Exploded . | . . . Melee . | . . . Uniques/NPCs Destroyed . | . . . Combat | -11 -10 -10 -------- Run | Yrd Mat Min Hostile Shots Fired 138 | . 36 102 Missed 35 | . 9 26 Damage Taken 1229 | . 225 1004 Core 255 | . 38 217 Absorbed by Shields . | . . . Redirected to Shielding 45 | . 24 21 Ignored by Resistances 362 | . 73 289 Core Remaining (%) 100 | 100 . . Volleys Fired 51 | . 39 12 Largest 2 | . 2 2 Hottest 80 | . 80 80 Shots Fired 102 | . 78 24 Gun 102 | . 78 24 Cannon . | . . . Launcher . | . . . Special . | . . . Kinetic 25 | . 25 . Thermal . | . . . Explosive . | . . . Electromagnetic 77 | . 53 24 Robot Hit Streak 13 | . 10 13 Robot Miss Streak 2 | . 2 1 Penetration Max . | . . . Secondary Targets 3 | . 3 . Max Gunslinging Chain 1 | . 1 . Shots Hit Robots 75 | . 55 20 Core Hits 30 | . 26 4 Critical Kills . | . . . Critical Parts Destroyed . | . . . Critical Strikes 1 | . 1 . Corrupt 1 | . 1 . Melee Attacks 2 | . 2 . Impact . | . . . Slashing 2 | . 2 . Piercing . | . . . Sneak Attacks . | . . . Combat Hostiles . | . . . Follow-up Attacks . | . . . Damage Inflicted 1004 | . 771 233 Guns 914 | . 681 233 Cannons . | . . . Explosions 90 | . 90 . Melee . | . . . Ramming . | . . . Kinetic 140 | . 140 . Thermal 90 | . 90 . Explosive . | . . . Electromagnetic 774 | . 541 233 Impact . | . . . Slashing . | . . . Piercing . | . . . Highest Corruption 1 | . 1 1 Average Corruption 1 | . 1 1 Corruption Purged . | . . . Corruption Blocked . | . . . Effects 11 | . 9 2 Message Errors 1 | . . 1 Matter Fused 6 | . 5 1 Data Loss (minor) 1 | . 1 . Data Loss (major) 2 | . 2 . Alerts 1 | . 1 . Overload Shots . | . . . Overflow Damage . | . . . Projectiles . | . . . Explosions . | . . . Melee . | . . . Knockbacks . | . . . Impact . | . . . Kinetic . | . . . Secondary . | . . . Self-Inflicted Damage . | . . . Shots . | . . . Rammed . | . . . Targets Rammed . | . . . Kicked . | . . . Crushed . | . . . Highest Temperature 250 | . 147 250 Average Temperature 58 | . 42 90 Received Heat Transfer 599 | . 123 476 Siege Activations . | . . . Robots Corrupted . | . . . Combat Hostiles . | . . . Parts Fried 4 | . 3 1 Impact Corruptions . | . . . Robots Melted . | . . . Combat Hostiles . | . . . Parts Melted . | . . . Heat Transferred 100 | . 100 . Parts Sabotaged . | . . . Parts Stolen . | . . . Parts Stripped . | . . . Power Chain Reactions 3 | . 3 . Alert | -11 -10 -10 ------- Run | Yrd Mat Min Peak Influence 218 | . 218 102 Initial 2 | . . 2 Average 56 | . 63 44 Maximum Alert Level 1 | . 1 . Low Security (%) 99 | 100 98 100 Level 1 . | . 1 . Level 2 . | . . . Level 3 . | . . . Level 4 . | . . . Level 5 . | . . . High Security . | . . . Max Security . | . . . Squads Dispatched 1 | . 1 . Investigation 1 | . 1 . Extermination . | . . . Reinforcement . | . . . Assault . | . . . Garrison . | . . . Intercept . | . . . Searches Triggered . | . . . Construction Impeded . | . . . Haulers Reinforced . | . . . Active Scanning Responses . | . . . Cargo Convoy Interrupts . | . . . Stealth | -11 -10 -10 --------- Run | Yrd Mat Min Distress Signals 2 | . 2 . Communications Jammed . | . . . Distress Signals . | . . . Times Spotted 41 | . 15 26 Peak Tracking Total 22 | . 4 22 Tactical Retreats . | . . . Traps | -11 -10 -10 ------- Run | Yrd Mat Min Traps Triggered 1 | . 1 . Indirectly . | . . . Trap Hack Attempts . | . . . Triggered . | . . . Disarmed 6 | . 6 . Reprogrammed . | . . . Reused . | . . . Traps Extracted . | . . . Installed . | . . . Triggered . | . . . Machines | -11 -10 -10 ---------- Run | Yrd Mat Min Machines Disabled . | . . . Max in Single Turn . | . . . Machines Repaired . | . . . Machines Dismantled . | . . . Machines Sabotaged . | . . . Overloaded Fab Kills . | . . . Hacking | -11 -10 -10 --------- Run | Yrd Mat Min Machines Accessed 8 | . 8 . Terminals 7 | . 7 . Fabricators . | . . . Repair Stations . | . . . Recycling Units 1 | . 1 . Scanalyzers . | . . . Garrison Access . | . . . Total Hacks 28 | . 28 . Successful 13 | . 13 . Failed 15 | . 15 . Catastrophic . | . . . Database Lockouts . | . . . Manual 18 | . 18 . Terminals 27 | . 27 . Fabricators . | . . . Repair Stations . | . . . Recycling Units 1 | . 1 . Scanalyzers . | . . . Garrison Access . | . . . Terminal Hacks 12 | . 12 . Prototype ID Bank 6 | . 6 . Terminal Index 1 | . 1 . Alert Level 1 | . 1 . Unreport Threat 2 | . 2 . Locate Traps 1 | . 1 . Disarm Traps 1 | . 1 . Fabricator Hacks . | . . . Repair Station Hacks . | . . . Recycling Unit Hacks 1 | . 1 . Report Inventory 1 | . 1 . Scanalyzer . | . . . Garrison Access Hacks . | . . . Unauthorized Hacks . | . . . Terminals . | . . . Fabricators . | . . . Repair Stations . | . . . Recycling Units . | . . . Scanalyzers . | . . . Garrison Access . | . . . Data Cores Recovered . | . . . Used . | . . . Hacking Detections 7 | . 7 . Full Trace Events 2 | . 2 . Feedback Events 1 | . 1 . Corruption 1 | . 1 . Feedback Blocked . | . . . Robot Schematics Acquired . | . . . Robots Built . | . . . Authchips . | . . . Time . | . . . Total Robot Build Rating . | . . . Part Schematics Acquired . | . . . Parts Built . | . . . Authchips . | . . . Time . | . . . Total Part Build Rating . | . . . Parts Repaired . | . . . Time . | . . . Parts Recycled . | . . . Recycled Matter . | . . . Retrieved Matter . | . . . Retrieved Components . | . . . Parts Scanalyzed . | . . . Part Schematics Acquired . | . . . Parts Damaged . | . . . Bothacking | -11 -10 -10 ------------ Run | Yrd Mat Min Used RIF Installer . | . . . Robots Hacked . | . . . Non-combat . | . . . Combat . | . . . Robot Hacks Applied . | . . . Relay Couplers Released . | . . . Fabnet Peak Effective % . | . . . Robots Rewired 1 | . 1 . Allies Hacked . | . . . Hacks Repelled . | . . . Allies | -11 -10 -10 -------- Run | Yrd Mat Min Total Allies 1 | . 1 . Largest Group 1 | . 1 1 Highest-Rated Group 16 | . 16 16 Highest-Rated Ally 16 | . 16 16 Total Orders . | . . . Ally Attacks 10 | . 2 8 Total Damage 114 | . 28 86 Kills 3 | . 1 2 Allies Corrupted . | . . . Allies Melted . | . . . Intel | -11 -10 -10 ------- Run | Yrd Mat Min Robot Analysis Total . | . . . Derelict Logs Recovered 1 | . . 1 Drone Launches . | . . . Drone Recoveries . | . . . Exploration | -11 -10 -10 ------------- Run | Yrd Mat Min Turns Passed 1464 | 78 1104 282 Spaces Moved 781 | 48 590 143 Core 52 | 48 . 4 Treads 729 | . 590 139 Legs . | . . . Wheels . | . . . Hover . | . . . Flight . | . . . Fastest Speed 50 | 50 160 50 Average Speed 158 | 139 160 157 Slowest Speed 160 | 150 160 160 Overloaded Moves . | . . . Propulsion Burnouts . | . . . Robots Hopped . | . . . Cave-ins Triggered . | . . . Exploration Rate (%) 51 | 4 93 57 Regions Visited 2 Branch Regions 1 Pre-discovered Areas . | . . . Known Exits Taken . | . . . Unknown Exits Taken 2 | 1 1 . Scrap Searched 1 | . . 1 Spaces Dug 2 | . 2 . Terrain Destroyed 11 | . 11 . Melee 2 | . 2 . Projectile . | . . . AOE 9 | . 9 . Terrain Rammed . | . . . Walls Destroyed . | . . . Machines Disabled . | . . . Actions | -11 -10 -10 --------- Run | Yrd Mat Min Total 910 | 59 676 175 Wait 16 | . 9 7 Move 779 | 47 589 143 Hop . | . . . Pick Up 27 | 10 12 5 Fast Attach 1 | . 1 . Attach 13 | 2 6 5 Detach . | . . . Swap 9 | . 7 2 Drop 11 | . 10 1 Fire 51 | . 39 12 Melee 2 | . 2 . Ram . | . . . Kick . | . . . Crush . | . . . Escape Stasis . | . . . Rewire 1 | . 1 . Trap . | . . . Miscellaneous . | . . . Route ------- -11/Scrapyard -10/Materials (discovered 5 exits: [*Mat x3] / [*Min x2]) -10/Mines History --------- Turn | Location | Event 25 | -11/Scrapyard | Discovered new exit (range 13) 79 | -11/Scrapyard | Entered Materials 263 | -10/Materials | Discovered new exit (range 16) 312 | -10/Materials | Build established: Mutant 512 | -10/Materials | Discovered new exit (range 10) 624 | -10/Materials | Discovered new exit (range 12) 689 | -10/Materials | Discovered new exit (range 16) 885 | -10/Materials | Discovered new exit (range 5) 1183 | -10/Materials | Entered Mines 1183 | -10/Mines | Accompanied by 1 ally 1262 | -10/Mines | Learned location of 1 exit from Materials 1422 | -10/Mines | Assembled infested the area 1460 | -10/Mines | Core integrity fell below 50% 1465 | -10/Mines | Core integrity fell below 20% 1465 | -10/Mines | Destroyed by as-58029 with Assembled Heavy Rifle Last Messages --------------- 01451_ Lgt. Armor Plating destroyed. 01452_ K-01 Serf collects debris. 01453_ Lgt. Nuclear Core destroyed. 01456_ K-01 Serf collects debris. 01457_ Lgt. Ion Engine destroyed. 01458_ Lgt. Armor Plating destroyed. 01459_ System corrupted: Matter fused (-8). 01459_ Critical hit (Burn: +80). 01459_ Lgt. Treads destroyed. 01459_ EM Pulse Gun severed. 01460_ as-63617 destroyed. 01460_ Critical hit (Destroy). 01461_ EM Pulse Gun destroyed. 01462_ K-01 Serf collects debris. 01462_ Dropped Lgt. Treads. 01462_ Critical hit (Destroy). 01462_ Lgt. Armor Plating destroyed. 01464_ The unstable cave ceiling collapses. 01464_ as-26505 destroyed. 01465_ K-01 Serf collects debris. Map ----- +----------------------------------------------------+ | ## """ ###### ##??????###### #### ###??? | | ## ###### ##???????###### ## ###?? | | ## ##??????????###### ###?? | | ## ##???????????###### ###? | | ## ##########??????????????#### #### | | ## ##########???????????????######## ### | | #########????????????????######??######## ## | | #########????????????????######???????### | | ?????????????????????????## ##????????## | | ?????????????????????????# #????????## | | ?????????????????????????# #????????## | | ?????????????????????????## ##????????### # | | ?????????????????????????## ###???????### # | | ?????????????????????????## #####??????## # | | ????????????????????????? #####?????### # | | ?????????????????????????## ######??##### # | | ???????????????????? ##### ############### | | ?????????????????##########%" ######"|]"## | | ??????#???????#### k " ####"" |""# | | ?????# ??????# ##????##### ! # | | ?????# ????# #### ##???????###=%[%## | | ?????# #### # #### ##???????####//### | | ?????# % ### ##???????## !# | | ?????# = % aaa aa ### ########### ! %# | | ?????? ### a % ### ########### | | ??????????????# a @ #### | | ???????????????## aa a###?## | | ????????????????# aaa ####?############## | | ????????????????##=[!####??############## | | ?????????????????######????????????????## | | ???????????????????????????????????????## | | ???????????????????????????????????????######### | | ???????????????????????????????????????######### | | ???????????????????????????????????????????????? | | ???????????????????????????????????????????????? | | ???????????????????????????????????????????????? | | ???????????????????????????????????????????????? | | ???????????????????????????????????????????????? | | ???????????????????????????????????????????????? | | ???????????????????????????????????????????????? | | ???????????????????????????????????????????????? | | ???????????????????????????????????????????????? | | ???????????????????????????????????????????????? | | ???????????????????????????????????????????????? | | | | | | | | | | | | | +----------------------------------------------------+ Best States ------------- Heat Dissipation 25 Energy Generation 14 Energy Capacity 160 Matter Stores 300 Matter Capacity 300 Sight Range 16 Terrain Scan Density 10 Armor Coverage 150 Resistance: KI 20 Resistance: TH 20 Resistance: EX 20 Resistance: EM 20 Resistance: I 20 Resistance: S 20 Resistance: P 20 Propulsion Shielding 33 Evasion (%) 40 Recoil Reduction 2 Offensive Hacking 10 Item Schematics ----------------- None Robot Schematics ------------------ None Fabricated ------------ Nothing Alien Tech Used ----------------- None Achievements -------------- Hunted Challenges ------------ None Game ------ Seed LinearUltimateWand Manual? 0 Play Time 00:16:51 Cumulative 41.2 hours Start 2025.04.30 @ 22:12:02 End 2025.04.30 @ 22:27:24 Sessions 1 Manual Loads 0 Difficulty Adventurer Special Mode None Game No. 11 Rogue 0 Adventurer 7 Explorer 4 Win Type - Total 1 Types 1/0/0/0/0/0/0/0/0 Lore% 14 Gallery% 37 Achievement% 35 Wizard Run 0 Options --------- Layout 1 ASCII 0 Keyboard 0 Movement Mouse Keybinds 0 Fullscreen 2 Font 24/Smallcaps Map View 50x35 Zoom Use 0% Tactical HUD 1 Map Filters NONE Filters NONE Steam 1 RUN: 0266c4a1-b062-43e5-9356-cd9dd7bce3ef